Cogmind - Beta 17 @@@ ROGUE MODE // 2026.08.12 @ 20:40:52 Player: Rocketboy Result: Destroyed by Y-45 Defender with Beam Rifle Performance ------------- Evolutions (2) 1000 Regions Visited (4) 800 Robots Destroyed (33) 165 Value Destroyed (492) 492 Prototype IDs (3) 60 Alien Tech Used (0) 0 Bonus (200) 200 TOTAL SCORE: 2717 Bonus ------- Entered Garrisons 200 Cogmind --------- Core Integrity 0/550 Matter 300/300 Energy 98/100 System Corruption 0% Temperature Cool (27) Movement Flying (40) Location -8/Garrison Parts ------- > --- POWER (1) -------- (None) > --- PROPULSION (4) --- Flight Unit > --- UTILITY (4) ------ Structural Scanner Visual Processing Unit > --- WEAPON (2) ------- Heavy Mace > --- INVENTORY (5) ---- Flight Unit Flight Unit VTOL Module Light Assault Rifle Peak State ------------ > --- POWER ------------ Light Deuterium Engine > --- PROPULSION ------- Hover Unit Flight Unit Flight Unit Flight Unit > --- UTILITY ---------- Structural Scanner Visual Processing Unit Improved Terrain Scanner Backup Plating I > --- WEAPON ----------- Axe Makeshift Sword > --- INVENTORY -------- Ion Engine [Rating: 21] Favorites ----------- Power Ion Engine Engine Ion Engine Propulsion Flight Unit Leg Aluminum Leg Hover Unit Hover Unit Flight Unit Flight Unit Utility Structural Scanner Device Structural Scanner Storage Small Storage Unit Processor Visual Processing Unit Hackware System Shield Protection Backup Plating I Weapon Small Laser Energy Gun Small Laser Ballistic Gun Barrage Gun Launcher Grenade Launcher Special Weapon Mining Laser Impact Weapon Heavy Mace Slashing Weapon Makeshift Sword Build | -11 -10 -10 -8 -8 ------- Run | Yrd Mat Sub Mat Gar Slots Evolved 4 | . . . 4 . Power . | . . . . . Propulsion 2 | . . . 2 . Utility 2 | . . . 2 . Weapon . | . . . . . Parts Attached 44 | 7 2 7 18 10 Power 5 | 1 . 1 2 1 Engine 5 | 1 . 1 2 1 Core . | . . . . . Reactor . | . . . . . Propulsion 21 | 2 . 2 8 9 Treads . | . . . . . Leg 2 | 2 . . . . Wheel . | . . . . . Hover 1 | . . . 1 . Flight 18 | . . 2 7 9 Utility 8 | 2 1 . 5 . Device 2 | 1 1 . . . Storage 1 | 1 . . . . Processor 2 | . . . 2 . Hackware 1 | . . . 1 . Protection 2 | . . . 2 . Artifact . | . . . . . Weapon 10 | 2 1 4 3 . Energy Gun 2 | 2 . . . . Energy Cannon . | . . . . . Ballistic Gun 1 | . . 1 . . Ballistic Cannon . | . . . . . Launcher 1 | . . 1 . . Special Weapon 2 | . 1 1 . . Impact Weapon 1 | . . . 1 . Slashing Weapon 3 | . . 1 2 . Piercing Weapon . | . . . . . Special Melee Weapon . | . . . . . Unidentified Prototypes 1 | . . . 1 . Parts Lost 26 | . . 4 6 16 Power 4 | . . . 1 3 Propulsion 15 | . . 2 3 10 Utility 3 | . . . 1 2 Weapon 4 | . . 2 1 1 Highest Loss Streak 9 | . . 4 5 9 To Critical Strikes 1 | . . . 1 . Average Backups 4 | 1 5 6 3 4 Power . | . 1 1 1 . Propulsion 2 | . 2 2 1 2 Utility . | . . 1 . . Weapon . | . . 1 . 1 Tool/Special . | . . . . . Unused Backups 5 | . . 1 . 4 Power . | . . . . . Propulsion 3 | . . . . 3 Utility 1 | . . 1 . . Weapon 1 | . . . . 1 Tool/Special . | . . . . . Average Slot Usage (%) 84 | . 100 91 64 85 Engine 11 | . 14 14 7 7 Leg 13 | . 28 20 . . Flight 12 | . . 7 19 33 Device 12 | . 14 14 11 9 Storage 6 | . 14 10 . . Processor 4 | . . . 8 13 Protection 1 | . . . 3 . Energy Gun 9 | . 26 8 . . Special Weapon 3 | . 1 10 . . Impact Weapon 1 | . . . 1 9 Slashing Weapon 5 | . . 3 10 9 Peak Build Rating 21 | 9 9 10 21 20 Average Rating 10 | 4 7 8 13 16 On Entrance 9 | . 9 8 8 20 Avg Prop Armor Cover (%) . | . . . . . Naked Turns . | . . . . . Heaviest Build 17 | 14 14 17 13 11 Greatest Support 20 | 20 20 20 16 16 Greatest Overweight (x) 2 | . . . 2 . Average Overweight (x) . | . . . . . Largest Inventory Capacity 8 | 8 8 8 5 5 Average Capacity 6 | 7 8 7 5 5 Most Carried 8 | 4 8 8 5 5 Average Carried 4 | 1 5 6 3 4 Final Capacity 8 | 8 8 5 5 5 Final Carried 8 | 1 8 4 5 4 Class Distribution -------------------- 77% | Mutant 14% | Scavenger-Sprinter 7% | Scavenger-Mutant Dominant Class ---------------- Mutant | -10/Materials Mutant | -10/Subcaves Mutant | -8/Materials Scavenger-Sprinter | -8/Garrison Resources | -11 -10 -10 -8 -8 ----------- Run | Yrd Mat Sub Mat Gar Matter Collected 758 | 270 10 50 348 80 Remotely . | . . . . . Salvage Created 913 | 125 196 . 491 101 Parts 61 | 7 15 . 28 11 Haulers Intercepted 2 | . . . 2 . Recyclers Shooed 1 | . . . 1 . Parts Field Recycled . | . . . . . Retrieved Matter . | . . . . . Parts Self-Destructed . | . . . . . Prevented . | . . . . . Parts Restored . | . . . . . Kills | -11 -10 -10 -8 -8 ------- Run | Yrd Mat Sub Mat Gar Combat Hostiles Destroyed 22 | . 5 . 10 7 Melee 16 | . . . 10 6 Guns 5 | . 5 . . . Classes Destroyed 8 | 2 5 . 1 . Worker 1 | . 1 . . . Tunneler 2 | 2 . . . . Hauler 2 | . . . 2 . Recycler 2 | 1 . . 1 . Operator 1 | . 1 . . . Watcher 3 | . 1 . 2 . Swarmer 17 | . 3 . 7 7 Grunt 5 | . 2 . 3 . Best Kill Streak 5 | 3 4 . 5 5 Combat Bots Only 5 | . 3 . 5 5 Max Kills in Single Turn 2 | 1 1 . 1 2 Gunslinging . | . . . . . Exploded . | . . . . . Melee 2 | . . . 1 2 Uniques/NPCs Destroyed . | . . . . . Combat | -11 -10 -10 -8 -8 -------- Run | Yrd Mat Sub Mat Gar Hostile Shots Fired 259 | . 16 31 89 123 Missed 82 | . 5 7 29 41 Hits 177 | . 11 24 60 82 Melee 5 | . . . . 5 Projectile 172 | . 11 24 60 77 Critical Strikes 6 | . . 2 1 3 Damage Taken 2162 | . 113 590 513 946 Core 665 | . 27 81 171 386 Absorbed by Shields 30 | . . . . 30 Regen/Repaired (Parts) 37 | . . . 37 . Core Remaining (%) 78 | 100 . 56 . . Volleys Fired 39 | 5 27 7 . . Largest 2 | 2 2 2 . . Hottest 200 | 90 100 200 . . Shots Fired 74 | 10 53 11 . . Gun 64 | 10 52 2 . . Cannon . | . . . . . Launcher 2 | . . 2 . . Special 8 | . 1 7 . . Kinetic 2 | . . 2 . . Thermal 70 | 10 53 7 . . Explosive 2 | . . 2 . . Electromagnetic . | . . . . . Robot Hit Streak 10 | 7 10 3 . . Robot Miss Streak 2 | . 2 1 . . Penetration Max . | . . . . . Secondary Targets . | . . . . . Shots Hit Robots 85 | 7 25 7 33 13 Core Hits 34 | 4 11 1 12 6 Critical Kills . | . . . . . Critical Parts Destroyed . | . . . . . Critical Strikes 4 | . 1 . 3 . Burn 1 | . 1 . . . Sever 3 | . . . 3 . Melee Attacks 88 | . . 2 58 28 Impact 12 | . . . 3 9 Slashing 76 | . . 2 55 19 Piercing . | . . . . . Sneak Attacks 3 | . . . 3 . Combat Hostiles . | . . . . . Follow-up Attacks 8 | . . . 5 3 Damage Inflicted 2391 | 85 293 198 1346 469 Guns 419 | 85 293 41 . . Cannons . | . . . . . Explosions 110 | . . 110 . . Melee 1815 | . . . 1346 469 Ramming . | . . . . . Kinetic 41 | . . 41 . . Thermal 425 | 85 293 47 . . Explosive 110 | . . 110 . . Electromagnetic . | . . . . . Impact 232 | . . . 86 146 Slashing 1583 | . . . 1260 323 Piercing . | . . . . . Highest Corruption . | . . . . . Average Corruption . | . . . . . Corruption Purged . | . . . . . Corruption Blocked . | . . . . . Overload Shots . | . . . . . Overflow Damage 218 | . . . 150 68 Projectiles . | . . . . . Explosions . | . . . . . Melee 218 | . . . 150 68 Knockbacks . | . . . . . Impact . | . . . . . Kinetic . | . . . . . Secondary . | . . . . . Self-Inflicted Damage 73 | . . 73 . . Shots 2 | . . 2 . . Rammed . | . . . . . Targets Rammed . | . . . . . Kicked . | . . . . . Crushed . | . . . . . Highest Temperature 174 | 102 174 . . 6 Average Temperature 63 | 46 66 . . 4 Received Heat Transfer 267 | . 48 12 36 171 Siege Activations . | . . . . . Martial Activations . | . . . . . Shielding Activations . | . . . . . Robots Disrupted . | . . . . . Combat Hostiles . | . . . . . Robots Corrupted 2 | . . . 1 1 Combat Hostiles 1 | . . . . 1 Parts Fried 1 | . . . 1 . Impact Corruptions 3 | . . . 1 2 Robots Melted . | . . . . . Combat Hostiles . | . . . . . Parts Melted 1 | . 1 . . . Heat Transferred 1288 | 235 843 210 . . Parts Sabotaged . | . . . . . Parts Stolen . | . . . . . Parts Stripped . | . . . . . Power Chain Reactions . | . . . . . Alert | -11 -10 -10 -8 -8 ------- Run | Yrd Mat Sub Mat Gar Maximum Alert Level 1 | . . . . 1 Low Security (%) 93 | 100 100 . 100 66 Level 1 6 | . . . . 33 Level 2 . | . . . . . Level 3 . | . . . . . Level 4 . | . . . . . Level 5 . | . . . . . High Security . | . . . . . Max Security . | . . . . . Peak Influence 262 | 5 70 . 176 262 Initial 109 | . . . . 109 Average 69 | . 21 . 79 169 Influence Increases 820 | 15 138 . 414 253 Destroy 0b10 Robot/C 440 | . 100 . 200 140 Destroy 0b10 Robot/NC 55 | 15 15 . 25 . Destroy Leader 70 | . 22 . 38 10 Successful Hack 31 | . . . 31 . Destroy Structure 14 | . 1 . . 13 Partial Spotted 15 | . . . . 15 Lose Combat Pursuer 195 | . . . 120 75 Influence Decreases 618 | 15 137 1 246 219 Entered New Map 60 | . . 1 . 59 Time Decay 338 | 15 137 . 186 . Lost Part 220 | . . . 60 160 Squads Dispatched 3 | . 1 . 2 . Investigation 1 | . . . 1 . Extermination . | . . . . . Reinforcement 2 | . 1 . 1 . Assault . | . . . . . Garrison . | . . . . . Intercept . | . . . . . Searches Triggered . | . . . . . Construction Impeded . | . . . . . Haulers Reinforced . | . . . . . Active Scanning Responses . | . . . . . Cargo Convoy Interrupts . | . . . . . Stealth | -11 -10 -10 -8 -8 --------- Run | Yrd Mat Sub Mat Gar Distress Signals . | . . . . . Communications Jammed . | . . . . . Distress Signals . | . . . . . Times Spotted 57 | . 10 4 23 20 Peak Tracking Total 13 | . 3 4 7 13 Tactical Retreats 8 | . . . 6 2 Traps | -11 -10 -10 -8 -8 ------- Run | Yrd Mat Sub Mat Gar Traps Triggered 4 | . . . . 4 Indirectly . | . . . . . Trap Hack Attempts . | . . . . . Triggered . | . . . . . Disarmed . | . . . . . Reprogrammed . | . . . . . Reused . | . . . . . Traps Extracted . | . . . . . Installed . | . . . . . Triggered . | . . . . . Machines | -11 -10 -10 -8 -8 ---------- Run | Yrd Mat Sub Mat Gar Machines Disabled . | . . . . . Max in Single Turn . | . . . . . Machines Repaired . | . . . . . Machines Dismantled . | . . . . . Machines Sabotaged . | . . . . . Overloaded Fab Kills . | . . . . . Hacking | -11 -10 -10 -8 -8 --------- Run | Yrd Mat Sub Mat Gar Machines Accessed 9 | . 3 . 6 . Terminals 6 | . 2 . 4 . Fabricators . | . . . . . Repair Stations 1 | . . . 1 . Recycling Units 1 | . 1 . . . Scanalyzers . | . . . . . Garrison Access 1 | . . . 1 . Total Hacks 29 | . 9 . 20 . Successful 15 | . 3 . 12 . Failed 14 | . 6 . 8 . Catastrophic 2 | . . . 2 . Database Lockouts . | . . . . . Manual 21 | . 7 . 14 . Terminals 21 | . 6 . 15 . Fabricators . | . . . . . Repair Stations 3 | . . . 3 . Recycling Units 3 | . 3 . . . Scanalyzers . | . . . . . Garrison Access 2 | . . . 2 . Terminal Hacks 4 | . . . 4 . Part Schematic 1 | . . . 1 . Prototype ID Bank 1 | . . . 1 . Terminal Index 1 | . . . 1 . Hauler Manifests 1 | . . . 1 . Fabricator Hacks . | . . . . . Repair Station Hacks 3 | . . . 3 . Scan Component 1 | . . . 1 . Repair 1 | . . . 1 . Refit 1 | . . . 1 . Recycling Unit Hacks 1 | . 1 . . . Report Inventory 1 | . 1 . . . Scanalyzer . | . . . . . Garrison Access Hacks 2 | . . . 2 . Unlock Access 1 | . . . 1 . Coupler Status 1 | . . . 1 . Unauthorized Hacks 5 | . 2 . 3 . Terminals 4 | . 1 . 3 . Botnet 4 | . 1 . 3 . Fabricators . | . . . . . Repair Stations . | . . . . . Recycling Units 1 | . 1 . . . Reject 1 | . 1 . . . Scanalyzers . | . . . . . Garrison Access . | . . . . . Data Cores Recovered . | . . . . . Used . | . . . . . Hacking Detections 9 | . 3 . 6 . Full Trace Events 1 | . . . 1 . Feedback Events . | . . . . . Feedback Blocked . | . . . . . Robot Schematics Acquired . | . . . . . Robots Built . | . . . . . Authchips . | . . . . . Time . | . . . . . Total Robot Build Rating . | . . . . . Part Schematics Acquired 1 | . . . 1 . Parts Built . | . . . . . Authchips . | . . . . . Time . | . . . . . Total Part Build Rating . | . . . . . Part Studies Acquired . | . . . . . Parts Repaired 1 | . . . 1 . Time 26 | . . . 26 . Parts Recycled . | . . . . . Recycled Matter . | . . . . . Retrieved Matter . | . . . . . Retrieved Components . | . . . . . Parts Scanalyzed . | . . . . . Part Schematics Acquired . | . . . . . Parts Damaged . | . . . . . Bothacking | -11 -10 -10 -8 -8 ------------ Run | Yrd Mat Sub Mat Gar Used RIF Installer . | . . . . . Robots Hacked . | . . . . . Non-combat . | . . . . . Combat . | . . . . . Robot Hacks Applied . | . . . . . Relay Couplers Released . | . . . . . Fabnet Peak Effective % . | . . . . . Robots Rewired . | . . . . . Allies Hacked . | . . . . . Hacks Repelled . | . . . . . Allies | -11 -10 -10 -8 -8 -------- Run | Yrd Mat Sub Mat Gar Total Allies . | . . . . . Largest Group . | . . . . . Highest-Rated Group . | . . . . . Highest-Rated Ally . | . . . . . Total Orders . | . . . . . Ally Attacks . | . . . . . Total Damage . | . . . . . Kills . | . . . . . Allies Corrupted . | . . . . . Allies Melted . | . . . . . Intel | -11 -10 -10 -8 -8 ------- Run | Yrd Mat Sub Mat Gar Active Infowar (turns) 1385 | 10 378 377 415 205 Optics 533 | . . . 328 205 Terrain 220 | 10 103 . 107 . Structural 1272 | . 275 377 415 205 Robot Analysis Total . | . . . . . Derelict Logs Recovered . | . . . . . Drone Launches . | . . . . . Drone Recoveries . | . . . . . Exploration | -11 -10 -10 -8 -8 ------------- Run | Yrd Mat Sub Mat Gar Turns Passed 1466 | 91 378 377 415 205 Spaces Moved 1379 | 74 230 443 430 202 Core 38 | 38 . . . . Treads . | . . . . . Legs 456 | 36 230 190 . . Wheels . | . . . . . Hover 3 | . . . 3 . Flight 882 | . . 253 427 202 Fastest Speed 31 | 50 120 37 31 31 Average Speed 63 | 84 120 72 34 31 Slowest Speed 180 | 120 120 120 180 37 Overloaded Moves . | . . . . . Propulsion Burnouts . | . . . . . Robots Hopped . | . . . . . Potential Cave-ins . | . . . . . Cave-ins Triggered . | . . . . . Exploration Rate (%) 27 | 3 39 24 34 35 Regions Visited 4 Branch Regions 1 Pre-discovered Areas . | . . . . . Known Exits Taken 1 | . . . 1 . Unknown Exits Taken 3 | 1 1 1 . . Scrap Searched 2 | . . 2 . . Spaces Dug 6 | . 1 2 . 3 Terrain Destroyed 26 | . 1 22 . 3 Melee 5 | . . 2 . 3 Projectile 1 | . 1 . . . AOE 20 | . . 20 . . Terrain Rammed . | . . . . . Walls Destroyed . | . . . . . Machines Disabled . | . . . . . Actions | -11 -10 -10 -8 -8 --------- Run | Yrd Mat Sub Mat Gar Total 1776 | 93 276 475 630 302 Wait 85 | . 11 . 71 3 Move 1375 | 73 229 442 430 201 Hop . | . . . . . Pick Up 57 | 8 7 6 25 11 Fast Attach . | . . . . . Attach 49 | 7 . 7 26 9 Detach 8 | . . . 8 . Swap 12 | . 2 3 5 2 Drop 23 | . . 8 12 3 Fire 39 | 5 27 7 . . Melee 80 | . . 2 53 25 Ram . | . . . . . Kick . | . . . . . Crush . | . . . . . Escape Stasis 48 | . . . . 48 Rewire . | . . . . . Trap . | . . . . . Miscellaneous . | . . . . . Route ------- -11/Scrapyard -10/Materials (discovered 3 exits: [*Mat] / [*Min] / [*Sub]) -10/Subcaves -8/Materials (discovered 2 exits: [*Fac] / Gar) -8/Garrison (discovered 1 exit: [*Mat]) History --------- Turn | Location | Event 4 | -11/Scrapyard | Discovered new exit (range 13) 92 | -11/Scrapyard | Entered Materials 296 | -10/Materials | Discovered new exit (range 6) 311 | -10/Materials | Build established: Mutant 397 | -10/Materials | Discovered new exit (range 14) 424 | -10/Materials | Discovered new exit (range 12) 470 | -10/Materials | Entered Subcaves 561 | -10/Subcaves | Shifting Twisted Machinery released Barrage Gun 564 | -10/Subcaves | Shifting Twisted Machinery released Flamer 706 | -10/Subcaves | Disturbed a concealed Subdweller 734 | -10/Subcaves | Ambushed by Subdweller buried in earth 775 | -10/Subcaves | Lost 4 parts (2n2w) 846 | -10/Subcaves | Discovered new exit (range 5) 847 | -10/Subcaves | Entered Materials 847 | -8/Materials | Evolved 4 slots: Propulsion x2, Utility x2 891 | -8/Materials | Repaired Lgt. Ion Engine 1181 | -8/Materials | Lost 5 parts (1p2n1u1w) 1235 | -8/Materials | Discovered new exit (range 18) 1262 | -8/Materials | Identified exit to Garrison 1262 | -8/Materials | Entered Garrison 1298 | -8/Garrison | Triggered checkpoint 1334 | -8/Garrison | Triggered checkpoint 1350 | -8/Garrison | Core integrity fell below 50% 1387 | -8/Garrison | Discovered new exit (range 8) 1396 | -8/Garrison | Attempted to access garrison exit controls, blocked by remote lockdown 1413 | -8/Garrison | Lost 9 parts (1p6n2u) 1448 | -8/Garrison | Triggered checkpoint 1453 | -8/Garrison | Core integrity fell below 20% 1467 | -8/Garrison | Destroyed by Y-45 Defender with Beam Rifle Last Messages --------------- Acquired Flight Unit. Acquired 36 matter. Dropped Flight Unit. H-55 Commando springs to life. Slug penetrates Machine. Acquired VTOL Module. G-47 Trooper springs to life. Flight Unit destroyed. Critical hit (Burn: +37). Flight Unit destroyed. Penetrated by Slug. Lgt. Ion Engine destroyed. Flight Unit destroyed. Scythe destroyed. Destroyed Heat Sink. Y-45 Defender system corrupted by crushing effect. Penetrated by Slug. Flight Unit destroyed. Critical hit (Burn: +37). Map ----- +----------------------------------------------------+ | ????????????????????????????????????????????? | | ????????????????????????????????????????????? | | ??????????????????????????????????????????? | | ??????????????????????????????????????????? | | ??????????????????????????????????????????# | | ??????????????????????????????????????????# | | ??????????????????????????????????????????# | | ??????????????????????????????????????????# | | ??????????????????????????????????????????# | | ??????????????????????????????????????????# | | ??????????????????????????????????????????# | | ??????????????????????????????????????????# | | ??????????????????????????????????????????# | | ??????????????????????????????????????????" | | ??????????????????????????????????????????" | | ??????????????????????????????????????????" | | ??????????????????????????????????????????" | | ??????????????????????????????????????????# | | ????????????????????????????????########### | | ???????###########??????????????# "%" | | ????"""""""""""""#??????????????# " * | | ???#" " "" " ""="#??????????????# ######## | | ???#"[" " "##?????????????# #?# #??##[ | | ???#" * h #?????????????# #?# #???#[ | | ???#" [ g ############### ### #####% | | ???#" @Yb l g bg ; % % | | ???#"[ Y ##### ######### ##### ### | | ???#"[" " #""###?? #???????# #???# #?# | | ???#"[" "" " ???# #???????# #####+### | | ???#""""""""### #???# #???????# | | ????########??###???### #???????# | | ??????????????????????# #???????# ########## | | ??????????????????????# #???????# #????????? | | ??????????????????????# #???????# #????????? | | ??????????????????????# ???????# #????????? | | ???????????????????????##???????# #????????? | | ????????????????????????????????# #????????? | | ????????????????????????????????# #????????? | | ????????????????????????????????# #????????? | | ????????????????????????????????# ##???????? | | ????????????????????????????????# "#???????? | | ???????????????????????########## ##???????? | | ???????????????????????# [ #????????? | | ???????????????????????# % #????????? | | ???????????????????????# < #"#######????????? | | ???????????????????????# "##??????????????? | | ???????????????????????######???????????????? | | ????????????????????????????????????????????? | | ????????????????????????????????????????????? | | ????????????????????????????????????????????? | +----------------------------------------------------+ Best States ------------- Heat Dissipation 31 Energy Generation 14 Energy Capacity 250 Matter Stores 300 Matter Capacity 300 Sight Range 18 Terrain Scan Range 16 Terrain Scan Density 10 Armor Coverage 600 Evasion (%) 63 Defensive Hacking 10 Item Schematics ----------------- VTOL Module | -8/Materials | Hacked Robot Schematics ------------------ None Fabricated ------------ Nothing Repaired ---------- Lgt. Ion Engine | 7% | -8/Materials Studied --------- None Alien Tech Used ----------------- None Achievements -------------- Ambidextrous Do Not Disturb Fitting Room Challenges ------------ None Game ------ Seed CloakCompanionShotgun Manual? 0 Play Time 00:36:21 Cumulative 43.8 hours Start 2026.08.12 @ 19:42:41 End 2026.08.12 @ 20:40:52 Sessions 1 Manual Loads 0 Difficulty Rogue Special Mode None Game No. 64 Rogue 64 Adventurer 0 Explorer 0 Win Type - Total 0 Types 0/0/0/0/0/0/0/0/0/0 Lore% 15 Gallery% 32 Achievement% 21 Wizard Run 0 Options --------- Layout 1 ASCII 0 Keyboard 0 Movement Mouse Keybinds 0 Fullscreen 1 Font 32/SmallcapsGlow Map View 50x35 Zoom Use 0% Tactical HUD 0 Map Filters NONE Filters NONE Steam 1 RUN: 84378048-3eff-4f64-9acd-fbd08c7aa628